[Event "Titled Tuesday Blitz October 5 2021"]
[White "Fier, Alexandr"]
[Black "Goncalves, Ivan Mesquita V"]
[WhiteFideId "2107139"]
[BlackFideId "2114224"]
[WhiteElo "2569"]
[BlackElo "2299"]
[Result "0-1"]
[Round "08"]
[TimeControl "180+1"]
[Date "2021.10.05"]
[WhiteClock "0:00:27"]
[BlackClock "0:00:11"]

1. e4 {[%clk 0:02:54]}  c5 {[%clk 0:03:00]} 2. a3 {[%clk 0:02:52]}  g6 {[%clk 0:02:57]} 3. h4 {[%clk 0:02:51]}  h5 {[%clk 0:02:55]} 4. Bc4 {[%clk 0:02:50]}  Nc6 {[%clk 0:02:54]} 5. Nf3 {[%clk 0:02:50]}  Bg7 {[%clk 0:02:54]} 6. c3 {[%clk 0:02:48]}  Nf6 {[%clk 0:02:52]} 7. e5 {[%clk 0:02:48]}  Ng4 {[%clk 0:02:52]} 8. d4 {[%clk 0:02:49]}  cxd4 {[%clk 0:02:52]} 9. cxd4 {[%clk 0:02:50]}  O-O {[%clk 0:02:39]} 10. Nc3 {[%clk 0:02:38]}  d6 {[%clk 0:02:34]} 11. e6 {[%clk 0:02:30]}  fxe6 {[%clk 0:02:34]} 12. O-O {[%clk 0:02:27]}  d5 {[%clk 0:02:28]} 13. Bd3 {[%clk 0:02:26]}  Qd6 {[%clk 0:02:19]} 14. g3 {[%clk 0:02:01]}  Nxd4 {[%clk 0:01:48]} 15. Ng5 {[%clk 0:02:01]}  Nf5 {[%clk 0:01:41]} 16. Bxf5 {[%clk 0:01:35]}  Rxf5 {[%clk 0:01:33]} 17. Nh3 {[%clk 0:01:25]}  Bd7 {[%clk 0:01:25]} 18. Bg5 {[%clk 0:01:25]}  Raf8 {[%clk 0:01:21]} 19. Qd2 {[%clk 0:01:15]}  Bc6 {[%clk 0:01:12]} 20. Rae1 {[%clk 0:01:12]}  Nxf2 {[%clk 0:00:51]} 21. Nf4 {[%clk 0:00:51]}  Nh3+ {[%clk 0:00:32]} 22. Nxh3 {[%clk 0:00:42]}  Qxg3+ {[%clk 0:00:32]} 23. Qg2 {[%clk 0:00:43]}  Rxf1+ {[%clk 0:00:23]} 24. Rxf1 {[%clk 0:00:43]}  Rxf1+ {[%clk 0:00:15]} 25. Kxf1 {[%clk 0:00:41]}  Qd3+ {[%clk 0:00:15]} 26. Ne2 {[%clk 0:00:39]}  d4 {[%clk 0:00:11]} 27. Qg3 {[%clk 0:00:37]}  Qd1+ {[%clk 0:00:10]} 28. Qe1 {[%clk 0:00:34]}  Bg2+ {[%clk 0:00:10]} 29. Kf2 {[%clk 0:00:35]}  Qxe1+ {[%clk 0:00:10]} 30. Kxe1 {[%clk 0:00:36]}  Bxh3 {[%clk 0:00:11]} 31. Nf4 {[%clk 0:00:36]}  Bf5 {[%clk 0:00:11]} 32. Bxe7 {[%clk 0:00:36]}  Kf7 {[%clk 0:00:10]} 33. Bd6 {[%clk 0:00:36]}  Bf6 {[%clk 0:00:10]} 34. Ne2 {[%clk 0:00:28]}  Bxh4+ {[%clk 0:00:10]} 35. Kd2 {[%clk 0:00:28]}  Bf6 {[%clk 0:00:11]} 36. Bb8 {[%clk 0:00:28]}  a6 {[%clk 0:00:11]} 37. Ba7 {[%clk 0:00:28]}  e5 {[%clk 0:00:11]} 38. Bb8 {[%clk 0:00:27]}  h4 {[%clk 0:00:12]} 39. Ke1 {[%clk 0:00:27]}  h3 {[%clk 0:00:11]} 40. Ng3 {[%clk 0:00:27]}  Ke6 {[%clk 0:00:11]} 41. Kf2 {[%clk 0:00:27]}  Bh4 {[%clk 0:00:11]} 42. Kf3 {[%clk 0:00:27]}  Bxg3 {[%clk 0:00:11]} 43. Kxg3 {[%clk 0:00:27]}  d3 {[%clk 0:00:11]} 0-1


[Site "https://www.chess.com"]

[Event "Titled Tuesday Blitz October 5 2021"]
[White "Florescu, Codrut-Constantin"]
[Black "Starozhilov, Leonid"]
[WhiteFideId "1202200"]
[BlackFideId "14106752"]
[WhiteElo "2243"]
[BlackElo "2414"]
[Result "1-0"]
[Round "08"]
[TimeControl "180+1"]
[Date "2021.10.05"]
[WhiteClock "0:01:15"]
[BlackClock "0:00:27"]

1. d4 {[%clk 0:03:00]}  Nf6 {[%clk 0:03:00]} 2. c4 {[%clk 0:03:00]}  g6 {[%clk 0:03:00]} 3. Nc3 {[%clk 0:03:00]}  Bg7 {[%clk 0:03:00]} 4. e4 {[%clk 0:02:59]}  d6 {[%clk 0:03:01]} 5. f3 {[%clk 0:02:59]}  O-O {[%clk 0:03:01]} 6. Bg5 {[%clk 0:02:59]}  Nc6 {[%clk 0:02:58]} 7. Nge2 {[%clk 0:02:58]}  e5 {[%clk 0:02:57]} 8. d5 {[%clk 0:02:55]}  Nd4 {[%clk 0:02:58]} 9. Nxd4 {[%clk 0:02:33]}  exd4 {[%clk 0:02:58]} 10. Nb5 {[%clk 0:02:33]}  h6 {[%clk 0:02:40]} 11. Bh4 {[%clk 0:02:31]}  g5 {[%clk 0:02:41]} 12. Bf2 {[%clk 0:02:29]}  c5 {[%clk 0:02:40]} 13. dxc6 {[%clk 0:02:27]}  bxc6 {[%clk 0:02:41]} 14. Nxd4 {[%clk 0:02:27]}  Bd7 {[%clk 0:02:21]} 15. Be2 {[%clk 0:02:26]}  Rb8 {[%clk 0:02:20]} 16. b3 {[%clk 0:02:25]}  Re8 {[%clk 0:02:04]} 17. O-O {[%clk 0:02:24]}  d5 {[%clk 0:02:03]} 18. exd5 {[%clk 0:02:19]}  cxd5 {[%clk 0:02:04]} 19. c5 {[%clk 0:02:19]}  Nh5 {[%clk 0:02:00]} 20. c6 {[%clk 0:02:03]}  Bc8 {[%clk 0:01:55]} 21. Rc1 {[%clk 0:01:59]}  Qd6 {[%clk 0:01:28]} 22. Nb5 {[%clk 0:01:52]}  Qe5 {[%clk 0:01:25]} 23. Re1 {[%clk 0:01:43]}  Ba6 {[%clk 0:01:13]} 24. Bf1 {[%clk 0:01:35]}  Qb2 {[%clk 0:01:04]} 25. c7 {[%clk 0:01:23]}  Ra8 {[%clk 0:00:43]} 26. Rxe8+ {[%clk 0:01:22]}  Rxe8 {[%clk 0:00:43]} 27. Nd6 {[%clk 0:01:21]}  Bxf1 {[%clk 0:00:37]} 28. Nxe8 {[%clk 0:01:18]}  Ba6 {[%clk 0:00:30]} 29. Nxg7 {[%clk 0:01:17]}  Nxg7 {[%clk 0:00:27]} 30. c8=Q+ {[%clk 0:01:16]}  Bxc8 {[%clk 0:00:26]} 31. Rxc8+ {[%clk 0:01:16]}  Kh7 {[%clk 0:00:27]} 32. Qc2+ {[%clk 0:01:15]} 1-0


[Site "https://www.chess.com"]

[Event "Titled Tuesday Blitz October 5 2021"]
[White "Golubev, Mikhail"]
[Black "Kadam, Om Manish"]
[WhiteFideId "14100983"]
[BlackFideId "45076294"]
[WhiteElo "2374"]
[BlackElo "1729"]
[Result "0-1"]
[Round "08"]
[TimeControl "180+1"]
[Date "2021.10.05"]
[WhiteClock "0:00:04"]
[BlackClock "0:01:13"]

1. e4 {[%clk 0:03:00]}  c6 {[%clk 0:02:59]} 2. d4 {[%clk 0:03:00]}  d5 {[%clk 0:02:59]} 3. e5 {[%clk 0:03:00]}  c5 {[%clk 0:03:00]} 4. dxc5 {[%clk 0:02:58]}  e6 {[%clk 0:02:59]} 5. Nf3 {[%clk 0:02:58]}  Bxc5 {[%clk 0:02:59]} 6. Bd3 {[%clk 0:02:58]}  Ne7 {[%clk 0:02:59]} 7. O-O {[%clk 0:02:57]}  Ng6 {[%clk 0:02:57]} 8. a3 {[%clk 0:02:54]}  Nd7 {[%clk 0:02:55]} 9. b4 {[%clk 0:02:46]}  Bb6 {[%clk 0:02:55]} 10. Re1 {[%clk 0:02:40]}  O-O {[%clk 0:02:54]} 11. h4 {[%clk 0:02:32]}  Qc7 {[%clk 0:02:51]} 12. Qe2 {[%clk 0:02:20]}  Ngxe5 {[%clk 0:02:35]} 13. Bf4 {[%clk 0:01:36]}  Nxf3+ {[%clk 0:02:29]} 14. Qxf3 {[%clk 0:01:37]}  e5 {[%clk 0:02:28]} 15. Bg3 {[%clk 0:01:19]}  Qc6 {[%clk 0:02:19]} 16. Nc3 {[%clk 0:01:04]}  e4 {[%clk 0:02:07]} 17. Nxe4 {[%clk 0:01:03]}  dxe4 {[%clk 0:02:08]} 18. Bxe4 {[%clk 0:01:03]}  Qf6 {[%clk 0:02:07]} 19. Qd3 {[%clk 0:01:01]}  g6 {[%clk 0:02:02]} 20. c4 {[%clk 0:00:56]}  Ne5 {[%clk 0:01:57]} 21. Bxe5 {[%clk 0:00:55]}  Qxf2+ {[%clk 0:01:49]} 22. Kh1 {[%clk 0:00:55]}  Qxh4+ {[%clk 0:01:49]} 23. Bh2 {[%clk 0:00:55]}  Bc7 {[%clk 0:01:48]} 24. g3 {[%clk 0:00:55]}  Qh5 {[%clk 0:01:44]} 25. Ra2 {[%clk 0:00:34]}  Be6 {[%clk 0:01:43]} 26. Bxb7 {[%clk 0:00:29]}  Rad8 {[%clk 0:01:43]} 27. Qf3 {[%clk 0:00:19]}  Bg4 {[%clk 0:01:41]} 28. Qf2 {[%clk 0:00:15]}  Rd3 {[%clk 0:01:36]} 29. Kg1 {[%clk 0:00:15]}  Bf3 {[%clk 0:01:34]} 30. Bxf3 {[%clk 0:00:14]}  Rxf3 {[%clk 0:01:35]} 31. Qg2 {[%clk 0:00:13]}  Qg4 {[%clk 0:01:36]} 32. Rae2 {[%clk 0:00:12]}  Bxg3 {[%clk 0:01:35]} 33. Re4 {[%clk 0:00:12]}  Bxh2+ {[%clk 0:01:19]} 34. Kxh2 {[%clk 0:00:12]}  Qh5+ {[%clk 0:01:19]} 35. Kg1 {[%clk 0:00:12]}  Rxa3 {[%clk 0:01:20]} 36. c5 {[%clk 0:00:11]}  Qf5 {[%clk 0:01:15]} 37. c6 {[%clk 0:00:11]}  Rc3 {[%clk 0:01:15]} 38. Rf1 {[%clk 0:00:10]}  Qc8 {[%clk 0:01:14]} 39. b5 {[%clk 0:00:10]}  a6 {[%clk 0:01:14]} 40. Re7 {[%clk 0:00:09]}  axb5 {[%clk 0:01:13]} 41. Qf2 {[%clk 0:00:04]}  Qg4+ {[%clk 0:01:13]} 0-1


[Site "https://www.chess.com"]

[Event "Titled Tuesday Blitz October 5 2021"]
[White "Iljushina, Olga"]
[Black "Salinas Herrera, Pablo"]
[WhiteFideId "4152280"]
[BlackFideId "3407128"]
[WhiteElo "1937"]
[BlackElo "2541"]
[Result "0-1"]
[Round "08"]
[TimeControl "180+1"]
[Date "2021.10.05"]
[WhiteClock "0:00:07"]
[BlackClock "0:01:23"]

1. d4 {[%clk 0:03:00]}  Nf6 {[%clk 0:02:57]} 2. c4 {[%clk 0:03:00]}  d6 {[%clk 0:02:57]} 3. Nc3 {[%clk 0:02:59]}  g6 {[%clk 0:02:58]} 4. e4 {[%clk 0:03:00]}  Bg7 {[%clk 0:02:59]} 5. Be3 {[%clk 0:03:00]}  O-O {[%clk 0:02:59]} 6. h3 {[%clk 0:03:00]}  c6 {[%clk 0:02:55]} 7. Qd2 {[%clk 0:03:00]}  a6 {[%clk 0:02:55]} 8. Bd3 {[%clk 0:02:46]}  b5 {[%clk 0:02:55]} 9. b3 {[%clk 0:02:45]}  Nbd7 {[%clk 0:02:54]} 10. Nf3 {[%clk 0:02:45]}  e5 {[%clk 0:02:55]} 11. d5 {[%clk 0:02:42]}  b4 {[%clk 0:02:55]} 12. Ne2 {[%clk 0:02:40]}  c5 {[%clk 0:02:52]} 13. g4 {[%clk 0:02:39]}  a5 {[%clk 0:02:52]} 14. O-O {[%clk 0:02:24]}  h5 {[%clk 0:02:47]} 15. g5 {[%clk 0:02:04]}  Nh7 {[%clk 0:02:46]} 16. h4 {[%clk 0:02:02]}  f5 {[%clk 0:02:18]} 17. exf5 {[%clk 0:01:42]}  Rxf5 {[%clk 0:01:53]} 18. Bxf5 {[%clk 0:01:40]}  gxf5 {[%clk 0:01:53]} 19. g6 {[%clk 0:01:37]}  Nhf8 {[%clk 0:01:50]} 20. Bg5 {[%clk 0:01:36]}  Qe8 {[%clk 0:01:50]} 21. Ng3 {[%clk 0:01:25]}  Qxg6 {[%clk 0:01:50]} 22. Nh2 {[%clk 0:01:06]}  f4 {[%clk 0:01:47]} 23. Ne2 {[%clk 0:00:55]}  Nh7 {[%clk 0:01:45]} 24. Nf3 {[%clk 0:00:45]}  Ndf6 {[%clk 0:01:45]} 25. Kh1 {[%clk 0:00:41]}  Ne4 {[%clk 0:01:45]} 26. Nxf4 {[%clk 0:00:28]}  exf4 {[%clk 0:01:32]} 27. Qxf4 {[%clk 0:00:28]}  Bg4 {[%clk 0:01:26]} 28. Rae1 {[%clk 0:00:24]}  Rf8 {[%clk 0:01:25]} 29. Rxe4 {[%clk 0:00:14]}  Bxf3+ {[%clk 0:01:25]} 30. Kh2 {[%clk 0:00:11]}  Bxe4 {[%clk 0:01:25]} 31. Qe3 {[%clk 0:00:08]}  Rf3 {[%clk 0:01:24]} 32. Qe2 {[%clk 0:00:07]}  Be5+ {[%clk 0:01:23]} 0-1


[Site "https://www.chess.com"]

[Event "Titled Tuesday Blitz October 5 2021"]
[White "Indjic, Aleksandar"]
[Black "Pichot, Alan"]
[WhiteFideId "911925"]
[BlackFideId "110973"]
[WhiteElo "2643"]
[BlackElo "2600"]
[Result "1-0"]
[Round "08"]
[TimeControl "180+1"]
[Date "2021.10.05"]
[WhiteClock "0:01:49"]
[BlackClock "0:00:21"]

1. d4 {[%clk 0:03:00]}  Nf6 {[%clk 0:02:59]} 2. c4 {[%clk 0:03:00]}  e6 {[%clk 0:02:59]} 3. Nc3 {[%clk 0:02:59]}  Bb4 {[%clk 0:03:00]} 4. Qc2 {[%clk 0:03:00]}  d6 {[%clk 0:02:56]} 5. Bg5 {[%clk 0:02:58]}  Nbd7 {[%clk 0:02:55]} 6. e3 {[%clk 0:02:57]}  h6 {[%clk 0:02:55]} 7. Bh4 {[%clk 0:02:56]}  Bxc3+ {[%clk 0:02:55]} 8. Qxc3 {[%clk 0:02:53]}  b6 {[%clk 0:02:56]} 9. Bd3 {[%clk 0:02:49]}  Bb7 {[%clk 0:02:54]} 10. f3 {[%clk 0:02:49]}  Qe7 {[%clk 0:02:46]} 11. Ne2 {[%clk 0:02:46]}  e5 {[%clk 0:02:46]} 12. Bf5 {[%clk 0:02:34]}  Nf8 {[%clk 0:01:59]} 13. O-O {[%clk 0:02:27]}  Ng6 {[%clk 0:01:54]} 14. Bg3 {[%clk 0:02:24]}  e4 {[%clk 0:01:38]} 15. f4 {[%clk 0:02:07]}  O-O {[%clk 0:01:32]} 16. d5 {[%clk 0:02:07]}  Rfe8 {[%clk 0:01:26]} 17. Nd4 {[%clk 0:02:06]}  Bc8 {[%clk 0:01:11]} 18. h3 {[%clk 0:02:04]}  Bxf5 {[%clk 0:01:06]} 19. Nxf5 {[%clk 0:02:05]}  Qd8 {[%clk 0:01:06]} 20. Rad1 {[%clk 0:02:01]}  Nh5 {[%clk 0:01:01]} 21. Be1 {[%clk 0:01:57]}  Qf6 {[%clk 0:01:01]} 22. g4 {[%clk 0:01:56]}  Nf8 {[%clk 0:00:39]} 23. Qc2 {[%clk 0:01:53]}  g6 {[%clk 0:00:25]} 24. Bc3 {[%clk 0:01:50]}  Qd8 {[%clk 0:00:20]} 25. Nxh6+ {[%clk 0:01:49]}  Kh7 {[%clk 0:00:21]} 26. Nxf7 {[%clk 0:01:49]}  Qh4 {[%clk 0:00:21]} 27. Ng5+ {[%clk 0:01:49]} 1-0


[Site "https://www.chess.com"]

[Event "Titled Tuesday Blitz October 5 2021"]
[White "Isajevsky, Anton"]
[Black "De Silva, L M S T"]
[WhiteFideId "4142500"]
[BlackFideId "9953698"]
[WhiteElo "2510"]
[BlackElo "1621"]
[Result "1-0"]
[Round "08"]
[TimeControl "180+1"]
[Date "2021.10.05"]
[WhiteClock "0:00:11"]
[BlackClock "0:00:31"]

1. c4 {[%clk 0:03:00]}  e5 {[%clk 0:03:00]} 2. g3 {[%clk 0:03:00]}  Nf6 {[%clk 0:03:00]} 3. Bg2 {[%clk 0:03:00]}  d5 {[%clk 0:03:00]} 4. cxd5 {[%clk 0:03:01]}  Nxd5 {[%clk 0:03:01]} 5. Nf3 {[%clk 0:03:02]}  Nc6 {[%clk 0:03:01]} 6. O-O {[%clk 0:03:03]}  Nb6 {[%clk 0:03:01]} 7. b3 {[%clk 0:03:03]}  Be7 {[%clk 0:02:58]} 8. Bb2 {[%clk 0:03:03]}  Bf6 {[%clk 0:02:59]} 9. Nc3 {[%clk 0:03:02]}  Bf5 {[%clk 0:02:58]} 10. d3 {[%clk 0:03:00]}  O-O {[%clk 0:02:58]} 11. Rc1 {[%clk 0:02:58]}  Qd7 {[%clk 0:02:57]} 12. Re1 {[%clk 0:02:56]}  Rfd8 {[%clk 0:02:57]} 13. Nd2 {[%clk 0:02:53]}  a6 {[%clk 0:02:54]} 14. Nce4 {[%clk 0:02:50]}  Be7 {[%clk 0:02:53]} 15. Nc5 {[%clk 0:02:44]}  Bxc5 {[%clk 0:02:52]} 16. Rxc5 {[%clk 0:02:45]}  f6 {[%clk 0:02:48]} 17. a3 {[%clk 0:02:29]}  Be6 {[%clk 0:02:44]} 18. b4 {[%clk 0:02:28]}  Nd5 {[%clk 0:02:39]} 19. Ne4 {[%clk 0:02:12]}  Nce7 {[%clk 0:02:38]} 20. Rc1 {[%clk 0:02:05]}  b6 {[%clk 0:02:38]} 21. Qc2 {[%clk 0:02:03]}  Rac8 {[%clk 0:02:38]} 22. e3 {[%clk 0:01:59]}  Bf5 {[%clk 0:02:21]} 23. d4 {[%clk 0:01:44]}  exd4 {[%clk 0:02:17]} 24. Bxd4 {[%clk 0:01:44]}  Bg6 {[%clk 0:02:15]} 25. Qc4 {[%clk 0:01:40]}  Kh8 {[%clk 0:02:08]} 26. Qxa6 {[%clk 0:01:32]}  Ra8 {[%clk 0:02:08]} 27. Qd3 {[%clk 0:01:21]}  f5 {[%clk 0:02:08]} 28. Ng5 {[%clk 0:01:19]}  f4 {[%clk 0:02:08]} 29. Qb3 {[%clk 0:01:11]}  fxg3 {[%clk 0:01:51]} 30. hxg3 {[%clk 0:01:03]}  Qg4 {[%clk 0:01:51]} 31. Nf3 {[%clk 0:00:47]}  Qh5 {[%clk 0:01:38]} 32. Ne5 {[%clk 0:00:45]}  Rac8 {[%clk 0:01:31]} 33. Bf3 {[%clk 0:00:33]}  Qg5 {[%clk 0:01:20]} 34. Kg2 {[%clk 0:00:32]}  c6 {[%clk 0:01:09]} 35. Rh1 {[%clk 0:00:30]}  Rf8 {[%clk 0:01:08]} 36. e4 {[%clk 0:00:17]}  Nf4+ {[%clk 0:01:07]} 37. Kf1 {[%clk 0:00:16]}  Ne6 {[%clk 0:01:04]} 38. Bb2 {[%clk 0:00:16]}  Rf6 {[%clk 0:00:56]} 39. Nxg6+ {[%clk 0:00:12]}  Rxg6 {[%clk 0:00:47]} 40. Rh5 {[%clk 0:00:13]}  Qd2 {[%clk 0:00:44]} 41. Rd1 {[%clk 0:00:13]}  Nc5 {[%clk 0:00:30]} 42. bxc5 {[%clk 0:00:13]}  Qa5 {[%clk 0:00:31]} 43. cxb6 {[%clk 0:00:12]}  Re8 {[%clk 0:00:31]} 44. Rxa5 {[%clk 0:00:11]} 1-0


[Site "https://www.chess.com"]

[Event "Titled Tuesday Blitz October 5 2021"]
[White "Janaszak, Dawid"]
[Black "Sagripanti, Michele"]
[WhiteFideId "1119206"]
[BlackFideId "847895"]
[WhiteElo "2215"]
[BlackElo "2195"]
[Result "1/2-1/2"]
[Round "08"]
[TimeControl "180+1"]
[Date "2021.10.05"]
[WhiteClock "0:00:11"]
[BlackClock "0:00:06"]

1. e4 {[%clk 0:03:00]}  g6 {[%clk 0:02:59]} 2. Nc3 {[%clk 0:02:59]}  Bg7 {[%clk 0:03:00]} 3. Bc4 {[%clk 0:03:00]}  c5 {[%clk 0:02:59]} 4. h4 {[%clk 0:02:59]}  h5 {[%clk 0:02:58]} 5. Qf3 {[%clk 0:02:54]}  e6 {[%clk 0:02:58]} 6. d4 {[%clk 0:02:54]}  cxd4 {[%clk 0:02:54]} 7. Nb5 {[%clk 0:02:54]}  d6 {[%clk 0:02:34]} 8. Bf4 {[%clk 0:02:46]}  Be5 {[%clk 0:02:34]} 9. Bxe5 {[%clk 0:02:41]}  dxe5 {[%clk 0:02:35]} 10. Qa3 {[%clk 0:02:39]}  Ne7 {[%clk 0:02:22]} 11. Nd6+ {[%clk 0:02:37]}  Kf8 {[%clk 0:02:21]} 12. Nh3 {[%clk 0:02:37]}  Bd7 {[%clk 0:02:00]} 13. f4 {[%clk 0:02:25]}  Nbc6 {[%clk 0:01:56]} 14. O-O {[%clk 0:02:22]}  Qa5 {[%clk 0:01:36]} 15. fxe5 {[%clk 0:02:10]}  Qxa3 {[%clk 0:01:21]} 16. Rxf7+ {[%clk 0:02:08]}  Kg8 {[%clk 0:01:21]} 17. bxa3 {[%clk 0:02:07]}  Rf8 {[%clk 0:01:13]} 18. Raf1 {[%clk 0:02:05]}  Rxf7 {[%clk 0:01:12]} 19. Rxf7 {[%clk 0:02:06]}  Rh7 {[%clk 0:01:10]} 20. Rxh7 {[%clk 0:01:56]}  Kxh7 {[%clk 0:01:10]} 21. Ng5+ {[%clk 0:01:56]}  Kh6 {[%clk 0:01:00]} 22. Bxe6 {[%clk 0:01:20]}  Bxe6 {[%clk 0:00:52]} 23. Nxe6 {[%clk 0:01:21]}  Nxe5 {[%clk 0:00:50]} 24. Nxb7 {[%clk 0:01:12]}  N7c6 {[%clk 0:00:48]} 25. Nbc5 {[%clk 0:01:07]}  Nc4 {[%clk 0:00:46]} 26. a4 {[%clk 0:01:05]}  Ne3 {[%clk 0:00:38]} 27. Kf2 {[%clk 0:00:51]}  Nxc2 {[%clk 0:00:38]} 28. Ke2 {[%clk 0:00:48]}  N2b4 {[%clk 0:00:38]} 29. a3 {[%clk 0:00:47]}  Nc2 {[%clk 0:00:38]} 30. Kd3 {[%clk 0:00:45]}  Nxa3 {[%clk 0:00:38]} 31. Nxd4 {[%clk 0:00:45]}  Ne5+ {[%clk 0:00:36]} 32. Kc3 {[%clk 0:00:43]}  Nb1+ {[%clk 0:00:34]} 33. Kb4 {[%clk 0:00:40]}  Nd2 {[%clk 0:00:30]} 34. Ka5 {[%clk 0:00:31]}  g5 {[%clk 0:00:23]} 35. hxg5+ {[%clk 0:00:31]}  Kxg5 {[%clk 0:00:24]} 36. Ka6 {[%clk 0:00:28]}  Kf4 {[%clk 0:00:21]} 37. Nde6+ {[%clk 0:00:28]}  Kg3 {[%clk 0:00:19]} 38. Ng7 {[%clk 0:00:28]}  h4 {[%clk 0:00:19]} 39. Nf5+ {[%clk 0:00:28]}  Kxg2 {[%clk 0:00:16]} 40. Nxh4+ {[%clk 0:00:27]}  Kg3 {[%clk 0:00:17]} 41. Nf5+ {[%clk 0:00:24]}  Kf4 {[%clk 0:00:17]} 42. Nd6 {[%clk 0:00:24]}  Ke3 {[%clk 0:00:16]} 43. Kxa7 {[%clk 0:00:23]}  Kd4 {[%clk 0:00:16]} 44. Ne6+ {[%clk 0:00:15]}  Kc3 {[%clk 0:00:14]} 45. a5 {[%clk 0:00:13]}  Nb3 {[%clk 0:00:12]} 46. Kb6 {[%clk 0:00:13]}  Nxa5 {[%clk 0:00:12]} 47. Kxa5 {[%clk 0:00:13]}  Kd3 {[%clk 0:00:12]} 48. Nc5+ {[%clk 0:00:12]}  Kd4 {[%clk 0:00:11]} 49. Kb4 {[%clk 0:00:11]}  Ng4 {[%clk 0:00:11]} 50. Nb5+ {[%clk 0:00:10]}  Ke5 {[%clk 0:00:10]} 51. Nc3 {[%clk 0:00:10]}  Nf6 {[%clk 0:00:09]} 52. Nd3+ {[%clk 0:00:10]}  Kd4 {[%clk 0:00:08]} 53. e5 {[%clk 0:00:11]}  Ne8 {[%clk 0:00:07]} 54. Nc5 {[%clk 0:00:11]}  Kxe5 {[%clk 0:00:07]} 55. Nb5 {[%clk 0:00:10]}  Kf4 {[%clk 0:00:06]} 56. Ne6+ {[%clk 0:00:10]}  Ke5 {[%clk 0:00:06]} 57. Nd6 {[%clk 0:00:11]}  Kxd6 {[%clk 0:00:06]} 1/2-1/2


[Site "https://www.chess.com"]

[Event "Titled Tuesday Blitz October 5 2021"]
[White "Jobava, Baadur"]
[Black "Nagy, Gabor"]
[WhiteFideId "13601520"]
[BlackFideId "737119"]
[WhiteElo "2731"]
[BlackElo "2534"]
[Result "1-0"]
[Round "08"]
[TimeControl "180+1"]
[Date "2021.10.05"]
[WhiteClock "0:00:14"]
[BlackClock "0:00:15"]

1. e4 {[%clk 0:02:59]}  c5 {[%clk 0:02:58]} 2. c3 {[%clk 0:02:58]}  g6 {[%clk 0:02:57]} 3. d4 {[%clk 0:02:58]}  cxd4 {[%clk 0:02:58]} 4. cxd4 {[%clk 0:02:59]}  d5 {[%clk 0:02:58]} 5. exd5 {[%clk 0:02:58]}  Nf6 {[%clk 0:02:58]} 6. Nc3 {[%clk 0:02:58]}  Bg7 {[%clk 0:02:57]} 7. Bc4 {[%clk 0:02:54]}  O-O {[%clk 0:02:56]} 8. Nge2 {[%clk 0:02:54]}  Nbd7 {[%clk 0:02:49]} 9. Bb3 {[%clk 0:02:54]}  Nb6 {[%clk 0:02:49]} 10. Nf4 {[%clk 0:02:54]}  Bg4 {[%clk 0:02:50]} 11. Qd3 {[%clk 0:02:48]}  Rc8 {[%clk 0:02:43]} 12. O-O {[%clk 0:02:46]}  Bf5 {[%clk 0:02:37]} 13. Qf3 {[%clk 0:02:40]}  Bg4 {[%clk 0:02:34]} 14. Qg3 {[%clk 0:02:40]}  Bf5 {[%clk 0:02:33]} 15. Re1 {[%clk 0:02:38]}  Nc4 {[%clk 0:02:25]} 16. h3 {[%clk 0:02:17]}  a6 {[%clk 0:02:21]} 17. Qf3 {[%clk 0:02:14]}  b5 {[%clk 0:02:16]} 18. g4 {[%clk 0:02:00]}  Bd7 {[%clk 0:02:15]} 19. Nd3 {[%clk 0:01:47]}  a5 {[%clk 0:01:58]} 20. Nc5 {[%clk 0:01:43]}  Nd6 {[%clk 0:01:49]} 21. Bf4 {[%clk 0:01:39]}  a4 {[%clk 0:01:46]} 22. Bc2 {[%clk 0:01:35]}  a3 {[%clk 0:01:44]} 23. bxa3 {[%clk 0:01:34]}  h5 {[%clk 0:01:40]} 24. g5 {[%clk 0:01:28]}  Nh7 {[%clk 0:01:40]} 25. Rad1 {[%clk 0:01:18]}  Bf5 {[%clk 0:01:22]} 26. Bxf5 {[%clk 0:01:16]}  Nxf5 {[%clk 0:01:22]} 27. Nxb5 {[%clk 0:01:16]}  Qa5 {[%clk 0:01:17]} 28. a4 {[%clk 0:01:12]}  Bxd4 {[%clk 0:01:06]} 29. Nb3 {[%clk 0:01:10]}  Bxf2+ {[%clk 0:00:51]} 30. Qxf2 {[%clk 0:01:08]}  Qxa4 {[%clk 0:00:52]} 31. N5d4 {[%clk 0:01:07]}  Nxd4 {[%clk 0:00:48]} 32. Nxd4 {[%clk 0:01:07]}  Rc3 {[%clk 0:00:48]} 33. h4 {[%clk 0:00:55]}  Rd8 {[%clk 0:00:45]} 34. Rxe7 {[%clk 0:00:37]}  Qxd1+ {[%clk 0:00:43]} 35. Kh2 {[%clk 0:00:32]}  Qg4 {[%clk 0:00:41]} 36. Bg3 {[%clk 0:00:28]}  Rf8 {[%clk 0:00:40]} 37. Nc6 {[%clk 0:00:22]}  Rf3 {[%clk 0:00:35]} 38. Qg2 {[%clk 0:00:21]}  Ra3 {[%clk 0:00:19]} 39. Re4 {[%clk 0:00:16]}  Qd1 {[%clk 0:00:17]} 40. Be5 {[%clk 0:00:14]}  Qb1 {[%clk 0:00:15]} 41. Ne7# {[%clk 0:00:14]} 1-0


[Site "https://www.chess.com"]